bitfinex/quotes_SOLUSD_20250210
["timestamp","ask_amount","ask_price","bid_price","bid_amount"]
[1739172172772,0.03,203.75,203.69,13.02412924]
[1739172172972,0.03,203.75,203.69,16.95152924]
[1739172174176,13.02412924,203.73,203.66,13.02412924]
[1739172174353,13.02412924,203.71,203.66,3.928]
[1739172174553,13.02412924,203.71,203.67,20.0]
[1739172174754,13.02412924,203.71,203.65,0.063]
[1739172175054,13.02412924,203.71,203.65,3.9912]
[1739172175382,13.05412924,203.75,203.69,13.02412924]
[1739172175580,0.03,203.75,203.69,13.02412924]
[1739172175756,0.03,203.75,203.69,20.90787306]
[1739172176354,0.03,203.75,203.69,24.83527306]
[1739172176960,20.87487306,203.75,203.69,3.9904]
[1739172177660,0.03,203.75,203.69,24.83527306]
[1739172178058,0.03,203.75,203.7,20.84487306]
[1739172179283,0.03,203.75,203.69,20.90787306]
[1739172179458,20.84487306,203.71,203.69,0.063]
[1739172180091,13.41184853,203.74,203.69,0.063]
[1739172180092,20.84487306,203.72,203.69,0.063]
[1739172180283,20.84487306,203.74,203.69,0.063]
[1739172180764,20.84487306,203.72,203.69,0.063]
[1739172181286,56.75819465,203.7,203.69,0.063]
[1739172181461,98.28549465,203.7,203.69,0.063]
[1739172182088,98.41098465,203.7,203.69,0.063]
[1739172182383,60.71460159,203.66,203.65,0.063]
[1739172182558,102.95563129,203.66,203.65,0.063]
[1739172182953,102.83014129,203.66,203.65,0.063]
[1739172183154,88.37177306,203.66,203.65,0.063]
[1739172183577,68.37177306,203.66,203.65,0.063]
[1739172184179,62.16487306,203.66,203.65,0.063]
[1739172184376,41.32,203.66,203.65,0.063]
[1739172184570,20.84487306,203.68,203.65,0.063]
[1739172184780,20.84487306,203.69,203.65,0.063]
[1739172184997,5.3966,203.7,203.65,20.90787306]
[1739172185763,5.3966,203.7,203.66,3.9281]
[1739172186066,5.3966,203.7,203.66,24.77297306]
[1739172186067,3.74,203.7,203.66,24.77297306]
[1739172186275,20.84487306,203.74,203.67,20.84487306]
[1739172186792,1.6866,203.75,203.68,20.84487306]
[1739172187002,0.03,203.75,203.7,20.84487306]
[1739172187877,0.03,203.75,203.71,3.9271]
[1739172188373,0.03,203.75,203.69,24.77217306]
[1739172188587,20.84487306,203.74,203.67,24.77257306]
[1739172188779,0.03,203.72,203.67,24.77257306]
[1739172189386,0.03,203.72,203.68,20.84487306]
[1739172189879,0.03,203.72,203.7,20.84487306]
[1739172190966,0.03,203.72,203.69,45.02335306]
[1739172191284,0.03,203.72,203.67,3.9277]
[1739172192187,0.03,203.72,203.67,24.77257306]
[1739172193176,0.03,203.72,203.68,20.84487306]
[1739172193477,0.03,203.72,203.69,0.25098]
[1739172193785,0.03,203.72,203.67,3.9277]
[1739172195265,0.03,203.72,203.67,24.77257306]
[1739172195672,0.03,203.72,203.67,16.95820715]
[1739172196391,0.03,203.72,203.65,17.02160715]
[1739172196392,13.06050715,203.72,203.65,17.02160715]
[1739172196568,13.03050715,203.7,203.65,3.9911]
[1739172197866,3.957,203.72,203.65,3.9911]
[1739172197867,13.03050715,203.71,203.65,3.9911]
[1739172198067,0.03,203.72,203.66,13.03050715]
[1739172198498,13.06050715,203.72,203.65,17.02160715]
[1739172198699,0.03,203.72,203.66,13.03050715]
[1739172199473,13.06050715,203.72,203.66,3.928]
[1739172200078,0.03,203.72,203.66,16.95850715]
[1739172200280,13.06050715,203.72,203.66,3.928]
[1739172201998,0.03,203.72,203.66,13.03050715]
[1739172203203,0.03,203.72,203.68,13.03050715]
[1739172203403,0.03,203.72,203.69,13.03050715]
[1739172203705,0.03,203.72,203.7,13.03050715]
[1739172204002,0.03,203.72,203.71,3.9271]
[1739172204992,0.03,203.72,203.69,13.03050715]
[1739172205203,0.03,203.72,203.68,36.95820715]
[1739172206212,0.03,203.72,203.68,20.0]
[1739172206395,13.06050715,203.72,203.68,20.0]
[1739172206703,0.03,203.72,203.68,23.9276]
[1739172207074,0.03,203.72,203.68,20.0]
[1739172207287,0.03,203.72,203.68,36.95820715]
[1739172207483,0.03,203.72,203.69,13.03050715]
[1739172208298,0.03,203.72,203.7,3.9273]
[1739172208484,0.03,203.72,203.69,16.95800715]
[1739172211493,0.03,203.72,203.7,13.03050715]
[1739172212395,0.03,203.72,203.69,3.9275]
[1739172212817,0.03,203.72,203.68,33.03050715]
[1739172213118,0.03,203.72,203.68,20.0]
[1739172213816,0.03,203.72,203.68,23.9277]
[1739172213990,0.03,203.72,203.68,20.0]
[1739172214706,13.03050715,203.69,203.67,0.063]
[1739172214880,13.03050715,203.68,203.67,0.063]
[1739172216115,13.03050715,203.69,203.67,0.063]
[1739172216615,5.5348,203.71,203.67,0.063]
[1739172216616,14.63820715,203.71,203.67,0.063]
[1739172217910,13.03050715,203.69,203.67,0.063]
[1739172218490,13.03050715,203.68,203.67,0.063]
[1739172218817,13.03050715,203.69,203.67,0.063]
[1739172221311,13.03050715,203.7,203.67,0.063]
[1739172221708,13.03050715,203.69,203.67,0.063]
[1739172221899,13.03050715,203.68,203.67,0.063]
[1739172222207,26.44235568,203.68,203.67,0.063]
[1739172223803,13.03050715,203.68,203.67,0.063]
[1739172223985,13.03050715,203.69,203.67,0.063]
[1739172225504,13.03050715,203.68,203.67,0.063]
[1739172226707,3.9275,203.69,203.67,0.063]
[1739172226913,13.03050715,203.68,203.67,0.063]
[1739172228909,43.135,203.71,203.67,0.063]
[1739172229110,0.03,203.72,203.67,13.09350715]
[1739172229307,0.03,203.72,203.68,13.03050715]
[1739172230321,0.03,203.72,203.69,3.9275]
[1739172231701,0.03,203.72,203.69,13.03050715]
[1739172234318,0.03,203.72,203.69,16.95800715]
[1739172235315,0.03,203.72,203.71,13.03050715]
[1739172236394,0.03,203.72,203.71,16.95760715]
[1739172240730,0.03,203.75,203.71,42.54050715]
[1739172240899,0.03,203.81,203.8,1.0]
[1739172241211,0.03,203.84,203.8,37.13408075]
[1739172241420,0.03,203.84,203.83,20.25098]
[1739172241608,0.03,203.84,203.83,20.61484224]
[1739172241808,0.03,203.84,203.83,33.64534939]
[1739172242800,0.03,203.84,203.83,34.64534939]
[1739172243125,0.0001,203.84,203.83,34.64534939]
[1739172243329,0.0001,203.84,203.83,33.64534939]
[1739172243497,0.0001,203.84,203.83,37.57014939]
[1739172244207,13.03060715,203.84,203.74,20.55552184]
[1739172244407,13.03050715,203.82,203.74,20.55552184]
[1739172244813,13.03050715,203.82,203.74,24.48202184]
[1739172245321,13.41184853,203.83,203.76,13.03050715]
[1739172245503,13.95062895,203.84,203.76,13.03050715]
[1739172245701,13.03060715,203.84,203.76,13.03050715]
[1739172246226,21.505,203.8,203.7,0.36493671]
[1739172246522,13.03050715,203.72,203.65,13.09350715]
[1739172248530,26.44235568,203.74,203.65,17.02170715]
[1739172248905,26.44235568,203.74,203.65,13.09350715]
[1739172249529,64.04235568,203.74,203.65,13.09350715]
[1739172249915,67.96895568,203.74,203.65,13.09350715]
[1739172250227,13.03050715,203.7,203.65,0.063]
[1739172250606,6.622e-05,203.71,203.7,2.25098]
[1739172250805,3.9239,203.88,203.73,29.76864569]
[1739172251017,50.66050715,203.89,203.77,13.03050715]
[1739172251018,13.03050715,203.85,203.77,13.03050715]
[1739172251218,13.03050715,203.83,203.75,13.03050715]
[1739172251418,13.41184853,203.82,203.75,13.03050715]
[1739172253629,13.41184853,203.83,203.75,20.82950194]
[1739172255235,37.6,203.82,203.75,20.82950194]
[1739172255732,37.6,203.82,203.77,20.82950194]
[1739172258951,37.6,203.82,203.79,20.82950194]
[1739172259135,0.0001,203.84,203.79,20.82950194]
[1739172260843,3.9247,203.84,203.79,20.82950194]
[1739172261148,0.0001,203.84,203.79,20.82950194]
[1739172263141,0.0001,203.84,203.79,13.88202301]
[1739172264062,0.0001,203.84,203.78,13.88202301]
[1739172264440,0.0001,203.84,203.76,3.926]
[1739172264441,13.41184853,203.82,203.76,13.88202301]
[1739172264948,13.41184853,203.83,203.76,13.88202301]
[1739172265757,3.925,203.82,203.76,13.88202301]
[1739172266257,13.41184853,203.83,203.76,13.88202301]
[1739172266552,13.41184853,203.83,203.76,13.88523903]
[1739172266957,0.0001,203.84,203.77,13.88523903]
[1739172267251,0.0001,203.84,203.79,13.88523903]
[1739172267755,0.0001,203.84,203.81,13.88523903]
[1739172270181,0.0001,203.84,203.81,17.81033903]
[1739172271039,0.0001,203.84,203.83,13.88523903]
[1739172273247,0.0001,203.84,203.83,17.81003903]
[1739172273638,0.0001,203.84,203.83,12.59626707]
[1739172278353,0.0001,203.84,203.83,21.51871414]
[1739172278557,0.0001,203.84,203.83,22.25431454]
[1739172278735,0.0001,203.84,203.83,13.58284747]
[1739172279462,0.0001,203.84,203.83,12.84724707]
[1739172279756,0.0001,203.84,203.83,13.58285392]
[1739172281045,0.0001,203.84,203.83,12.84724707]
[1739172281952,0.0001,203.84,203.83,13.5828746]
[1739172282155,0.0001,203.84,203.83,13.3318946]
[1739172282956,0.0001,203.84,203.83,12.59626707]
[1739172287362,0.0001,203.84,203.82,28.67146707]
[1739172288243,0.0001,203.84,203.79,3.9254]
[1739172288867,0.0001,203.84,203.8,28.67146707]
[1739172289167,0.0001,203.84,203.81,8.67146707]
[1739172289357,0.0001,203.84,203.81,12.59646707]
[1739172292566,0.0001,203.84,203.81,8.67146707]
[1739172292745,0.0001,203.84,203.8,28.67146707]
[1739172292947,0.0001,203.84,203.8,32.59666707]
[1739172294662,0.0001,203.84,203.81,8.67146707]
[1739172294854,0.0001,203.84,203.81,12.59666707]
[1739172296565,0.0001,203.84,203.83,8.67146707]
[1739172297956,0.0001,203.84,203.81,12.59666707]
[1739172301671,0.0001,203.84,203.81,3.9252]
[1739172302173,0.0001,203.84,203.8,25.55163469]
[1739172302680,0.0001,203.84,203.8,29.47703469]
[1739172303671,0.0001,203.84,203.79,9.47713469]
[1739172303971,0.0001,203.84,203.79,5.55163469]
[1739172304353,0.0001,203.84,203.78,5.55163469]
[1739172305152,0.0001,203.84,203.77,9.47743469]
[1739172306278,0.0001,203.84,203.79,5.55163469]
[1739172306463,5.55173469,203.84,203.77,25.55163469]
[1739172306771,5.55163469,203.83,203.77,20.0]
[1739172306951,5.55173469,203.84,203.77,25.55163469]
[1739172307269,0.0001,203.84,203.77,25.55163469]
[1739172308274,0.0001,203.84,203.78,5.55163469]
[1739172309375,0.0001,203.84,203.77,3.9259]
[1739172309376,5.55163469,203.81,203.74,5.55163469]
[1739172309554,5.55163469,203.82,203.74,5.55163469]
[1739172309755,43.15163469,203.83,203.75,5.55163469]
[1739172310374,47.07663469,203.83,203.75,9.47793469]
[1739172311076,47.07663469,203.83,203.76,5.55163469]
[1739172311373,47.63125477,203.83,203.75,5.55163469]
[1739172314282,5.55163469,203.82,203.75,5.55163469]
[1739172314458,9.47673469,203.82,203.75,5.55163469]
[1739172314655,47.07673469,203.82,203.75,5.55163469]
[1739172318164,5.55163469,203.81,203.74,5.55163469]
[1739172319492,5.55163469,203.81,203.74,9.47813469]
[1739172321072,9.47683469,203.81,203.74,9.47813469]
[1739172321273,1.5311,203.74,203.71,0.063]
[1739172321472,5.55163469,203.72,203.71,0.063]
[1739172321674,5.55163469,203.73,203.71,0.063]
[1739172321862,7.08273469,203.74,203.71,0.063]
[1739172322481,1.5311,203.74,203.71,0.063]
[1739172322787,1.5311,203.74,203.71,5.61463469]
[1739172322967,1.5311,203.74,203.71,0.063]
[1739172325088,5.55163469,203.72,203.71,0.063]
[1739172325553,43.15163469,203.72,203.71,0.063]
[1739172325759,60.49038322,203.72,203.71,0.063]
[1739172326383,66.97366322,203.72,203.71,0.063]
[1739172327189,89.18020198,203.72,203.71,0.063]
[1739172327395,89.73482206,203.72,203.71,0.063]
[1739172327701,79.36062511,203.72,203.71,0.063]
[1739172328982,70.66863686,203.72,203.71,0.063]
[1739172329564,33.06863686,203.72,203.71,0.063]
[1739172332176,33.06728731,203.72,203.71,0.063]
[1739172332980,41.75792601,203.72,203.71,0.063]
[1739172339886,20.25098,203.68,203.67,0.063]
[1739172340083,42.90808731,203.68,203.67,0.063]
[1739172340399,0.25098,203.66,203.65,0.063]
[1739172340694,9.24525878,203.66,203.65,0.063]
[1739172340895,22.90808731,203.66,203.65,0.063]
[1739172342003,26.83618731,203.66,203.65,0.063]
[1739172343909,22.10248723,203.66,203.65,0.063]
[1739172344588,8.6906387,203.66,203.65,0.063]
[1739172349306,12.6187387,203.66,203.65,0.063]
[1739172349483,26.03058723,203.66,203.65,0.063]
[1739172349688,22.90666293,203.66,203.65,0.063]
[1739172349887,23.46128301,203.66,203.65,0.063]
[1739172350090,0.25098,203.64,203.61,0.063]
[1739172350294,18.97856293,203.62,203.61,0.063]
[1739172351386,22.90736293,203.62,203.61,0.063]
[1739172352397,22.90736293,203.62,203.58,0.063]
[1739172352398,0.25098,203.6,203.58,0.063]
[1739172352596,19.78416301,203.59,203.58,0.063]
[1739172354002,23.71356301,203.59,203.58,0.063]
[1739172359088,20.0,203.53,203.5,0.063]
[1739172359293,20.0,203.53,203.47,0.063]
[1739172359294,13.66282853,203.5,203.47,0.063]
[1739172359493,5.5667144,203.48,203.47,0.063]
[1739172360099,18.97856293,203.48,203.47,0.063]
[1739172360294,56.57856293,203.48,203.47,0.063]
[1739172360713,43.1667144,203.48,203.47,0.063]
[1739172361497,60.51006293,203.48,203.47,0.063]
[1739172361713,63.6563639,203.48,203.47,0.063]
[1739172362313,26.3073439,203.48,203.47,0.063]
[1739172362816,26.86196398,203.48,203.47,0.063]
[1739172364522,26.86196398,203.48,203.47,0.01906]
[1739172364918,0.12549,203.47,203.46,0.017599]
[1739172365226,8.83850537,203.47,203.46,0.017599]
[1739172365606,12.77020537,203.47,203.46,0.017599]
[1739172365807,8.71301537,203.47,203.46,0.017599]
[1739172365997,8.83850537,203.47,203.46,0.017599]
[1739172366310,26.86216398,203.47,203.46,0.017599]
[1739172366821,8.71301537,203.47,203.46,0.017599]
[1739172369513,13.19933545,203.47,203.46,0.017599]
[1739172369824,26.86216398,203.47,203.46,0.017599]
[1739172371624,13.32482545,203.47,203.46,0.017599]
[1739172372124,26.86216398,203.47,203.46,0.017599]
[1739172373018,13.32482545,203.47,203.46,0.017599]
[1739172373320,12.77020537,203.47,203.46,0.017599]
[1739172373519,8.71301537,203.47,203.46,0.017599]
[1739172373916,26.73667398,203.47,203.46,0.017599]
[1739172374725,13.32482545,203.47,203.46,0.017599]
[1739172375934,26.73667398,203.47,203.46,0.017599]
[1739172377011,13.32482545,203.47,203.46,0.017599]
[1739172380612,8.83850537,203.47,203.46,0.017599]
[1739172381540,8.71301537,203.47,203.46,0.017599]
[1739172383735,5.57365473,203.47,203.46,0.017599]
[1739172384553,9.50535473,203.47,203.46,0.017599]
[1739172387138,9.63084473,203.47,203.46,0.017599]
[1739172387944,23.04269326,203.47,203.46,0.017599]
[1739172389123,9.63084473,203.47,203.46,0.017599]
[1739172390451,9.66084473,203.47,203.46,0.017599]
[1739172390627,10.21546481,203.47,203.46,0.017599]
[1739172391324,5.60365473,203.47,203.46,0.017599]
[1739172392748,0.03,203.47,203.46,0.017599]
[1739172394733,0.03,203.47,203.46,6.651299]
[1739172396634,0.03,203.47,203.46,16.15685373]
[1739172397450,0.03,203.47,203.46,10.583199]
[1739172398831,0.03,203.47,203.46,16.15404265]
[1739172400550,0.03,203.47,203.46,30.55386566]
[1739172402244,0.03,203.47,203.46,30.55154181]
[1739172403853,0.03,203.47,203.46,31.55154181]
[1739172405146,0.0001,203.47,203.46,61.06154181]
[1739172406039,0.03,203.5,203.49,39.23134833]
[1739172406239,0.03,203.5,203.49,39.96818522]
[1739172407239,0.03,203.5,203.49,43.89948522]
[1739172411440,0.03,203.5,203.49,43.77399522]
[1739172411640,0.03,203.5,203.49,43.03715833]
[1739172412263,0.03,203.5,203.49,29.4998198]
[1739172412437,0.03,203.5,203.49,23.9313]
[1739172414153,0.03,203.5,203.49,29.4998198]
[1739172415554,0.03,203.5,203.49,23.9313]
[1739172417239,0.03,203.5,203.49,29.4998198]
[1739172418766,0.03,203.5,203.49,23.9313]
[1739172420363,0.03,203.5,203.49,43.03715833]
[1739172420963,0.03,203.5,203.49,43.16264833]
[1739172421151,0.0001,203.5,203.49,74.67264833]
[1739172421357,0.0001,203.5,203.49,75.40946459]
[1739172423362,0.0001,203.5,203.49,44.89946459]
[1739172423770,0.0001,203.5,203.49,45.89946459]
[1739172425172,0.0001,203.5,203.49,45.96246459]
[1739172426462,0.0001,203.5,203.49,47.21203219]
[1739172427064,0.0001,203.5,203.49,76.72203219]
[1739172427575,0.0001,203.5,203.49,75.47246459]
[1739172427794,0.0001,203.5,203.49,43.96246459]
[1739172428873,0.0001,203.5,203.49,43.10015833]
[1739172429079,0.0001,203.5,203.49,23.9943]
[1739172429458,0.0001,203.5,203.49,3.9943]
[1739172430176,0.0001,203.5,203.49,20.063]
[1739172430480,0.0001,203.5,203.49,0.063]
[1739172448989,120.1126,203.49,203.46,0.017599]
[1739172449188,25.6941098,203.5,203.35,4.733e-05]
[1739172449189,2.0,203.36,203.35,4.733e-05]
[1739172449389,2.0,203.36,203.22,37.04585642]
[1739172449390,2.0,203.32,203.22,37.04585642]
[1739172449571,4.88251461,203.36,203.25,3.55756587]
[1739172449572,13.53733853,203.27,203.25,3.55756587]
[1739172449776,51.13733853,203.26,203.25,16.97422007]
[1739172449977,52.13733853,203.26,203.25,16.97422007]
[1739172450172,58.54043853,203.26,203.25,16.97422007]
[1739172450476,58.54043853,203.26,203.25,4.99501848]
[1739172450672,26.50895833,203.26,203.25,4.99501848]
[1739172450880,43.95977374,203.26,203.25,4.99501848]
[1739172451287,48.89557374,203.26,203.25,4.99501848]
[1739172451486,31.44475833,203.26,203.25,1.848e-05]
[1739172451694,133.53332506,203.26,203.16,0.03]
[1739172451994,18.37377813,203.25,203.16,0.03]
[1739172452183,0.92296272,203.25,203.16,0.03]
[1739172452389,11.10688729,203.25,203.16,0.03]
[1739172452794,11.23237729,203.25,203.16,0.03]
[1739172453393,35.39148569,203.25,203.16,0.03]
[1739172453581,1.0,203.16,203.1,8.73487447]
[1739172454199,1.0,203.16,203.1,28.73487447]
[1739172454491,10.18392457,203.15,203.1,28.73487447]
[1739172454680,10.18392457,203.15,203.1,8.73487447]
[1739172454876,15.27155369,203.12,203.1,8.73487447]
[1739172455898,15.27155369,203.13,203.1,8.73487447]
[1739172456698,3.35885838,203.12,203.1,8.73487447]
[1739172457472,3.35885838,203.11,203.1,8.73487447]
[1739172457689,3.35885838,203.11,203.09,8.73487447]
[1739172458098,7.60755691,203.14,203.09,8.73487447]
[1739172459097,8.60755691,203.14,203.09,8.73487447]
[1739172459298,8.60755691,203.14,203.05,74.66573705]
[1739172459299,9.73487447,203.14,203.07,8.73487447]
[1739172459602,8.73487447,203.13,203.06,8.73487447]
[1739172459779,9.73487447,203.12,203.05,8.73487447]
[1739172460084,8.73487447,203.11,203.04,38.24487447]
[1739172460685,8.73487447,203.11,203.04,42.18487447]
[1739172461203,9.73487447,203.12,203.05,8.73487447]
[1739172461498,9.73487447,203.1,203.03,8.73487447]
[1739172461801,1.0,203.08,203.03,8.73487447]
[1739172462299,1.0,203.08,203.02,83.40061152]
[1739172462488,1.0,203.08,203.02,8.73487447]
[1739172462683,1.0,203.08,203.02,12.67527447]
[1739172463291,8.73487447,203.09,203.02,12.67527447]
[1739172463479,1.0,203.12,203.08,8.73487447]
[1739172463679,1.0,203.12,203.07,8.73487447]
[1739172464077,1.0,203.12,203.03,0.25098]
[1739172464078,81.0,203.13,203.1,8.73487447]
[1739172464286,45.78220474,203.16,203.12,8.73487447]
[1739172464495,1.0,203.15,203.12,8.73487447]
[1739172464698,1.0,203.15,203.09,8.73487447]
[1739172465095,45.78220474,203.16,203.11,8.73487447]
[1739172466002,45.78220474,203.16,203.11,12.67357447]
[1739172466301,45.78220474,203.16,203.08,20.0]
[1739172466302,45.78220474,203.16,203.12,8.73487447]
[1739172466499,45.78220474,203.16,203.14,8.73487447]
[1739172467004,10.0776607,203.2,203.14,8.73487447]
[1739172467807,18.81253517,203.2,203.13,8.73487447]
[1739172469909,18.81253517,203.2,203.14,3.9381]
[1739172470288,8.73487447,203.19,203.14,3.9381]
[1739172470484,8.73487447,203.19,203.12,3.9384]
[1739172470703,8.73487447,203.17,203.1,1.662]
[1739172470909,8.73487447,203.17,203.1,5.6007]
[1739172471504,8.73487447,203.18,203.11,8.73487447]
[1739172471693,19.84253517,203.2,203.13,8.73487447]
[1739172471895,19.84253517,203.2,203.14,3.9381]
[1739172472203,10.1076607,203.2,203.14,3.9381]
[1739172472510,11.1076607,203.2,203.14,3.9381]
[1739172473413,19.84253517,203.2,203.14,3.9381]
[1739172474310,19.84253517,203.2,203.13,8.73487447]
[1739172475717,19.84253517,203.2,203.14,3.9381]
[1739172480711,19.84253517,203.2,203.12,3.9385]
[1739172481517,10.1076607,203.2,203.13,8.98585447]
[1739172481711,10.1076607,203.2,203.15,8.73487447]
[1739172482010,11.1076607,203.2,203.13,8.73487447]
[1739172482404,10.1076607,203.2,203.13,8.73487447]
[1739172482600,10.1076607,203.2,203.15,8.73487447]
[1739172482910,10.1076607,203.2,203.17,12.67237447]
[1739172483315,10.1076607,203.2,203.18,8.73487447]
[1739172483613,10.1076607,203.2,203.19,8.73487447]
[1739172483805,10.1076607,203.2,203.17,12.67237447]
[1739172484819,10.1076607,203.2,203.17,3.9375]
[1739172485016,10.1076607,203.2,203.17,12.67237447]
[1739172485320,10.1076607,203.2,203.18,8.86036447]
[1739172485908,10.1076607,203.2,203.17,12.67237447]
[1739172486602,10.1076607,203.2,203.17,8.86036447]
[1739172487004,10.1076607,203.2,203.16,74.66573705]
[1739172487213,18.84253517,203.2,203.16,74.66573705]
[1739172488423,18.84253517,203.2,203.17,3.9375]
[1739172488610,10.1076607,203.2,203.17,3.9375]
[1739172489224,8.73487447,203.19,203.12,18.70626447]
[1739172489421,8.73487447,203.18,203.13,3.9383]
[1739172490334,11.1076607,203.2,203.13,3.9383]
[1739172490335,8.73487447,203.19,203.13,3.9383]
[1739172490927,2.9111686,203.17,203.13,3.9383]
[1739172491422,2.9111686,203.17,203.12,13.7844]
[1739172491608,11.64604307,203.17,203.12,3.9385]
[1739172492526,2.9111686,203.16,203.1,8.73487447]
[1739172492729,2.9111686,203.16,203.11,3.9387]
[1739172493305,12.64604307,203.16,203.11,3.9387]
[1739172493512,8.73487447,203.15,203.11,3.9387]
[1739172494004,11.64604307,203.15,203.11,3.9387]
[1739172494922,11.64604307,203.15,203.09,9.8478]
[1739172495130,8.73487447,203.12,203.1,0.063]
[1739172495312,9.73487447,203.11,203.1,0.063]
[1739172497028,23.272213,203.11,203.1,0.063]
[1739172497525,26.1833816,203.11,203.1,0.063]
[1739172500022,26.3088716,203.11,203.1,0.063]
[1739172500821,30.2475716,203.11,203.1,0.063]
[1739172503826,67.8475716,203.11,203.1,0.063]
[1739172504449,34.53733853,203.07,203.06,0.063]
[1739172504737,1.0,202.98,202.92,8.73487447]
[1739172505125,1.0,202.98,202.91,3.9426]
[1739172505126,1.0,202.96,202.91,3.9426]
[1739172506037,1.0,202.98,202.92,8.73487447]
[1739172506239,8.73487447,202.99,202.92,8.73487447]
[1739172506240,1.0,202.96,202.92,8.73487447]
[1739172507025,1.0,202.98,202.92,8.73487447]
[1739172507433,1.0,202.98,202.92,8.79787447]
[1739172508140,1.0,202.96,202.93,3.9422]
[1739172511338,1.0,202.96,202.92,0.063]
[1739172511843,1.0,202.98,202.93,8.73487447]
[1739172512238,1.0,203.0,202.94,8.73487447]
[1739172512439,1.0,202.98,202.93,8.73487447]
[1739172513147,1.0,202.98,202.92,8.79787447]
[1739172513645,1.0,202.98,202.93,3.9422]
[1739172515361,9.73487447,203.0,202.93,13.7978]
[1739172515528,1.0,202.97,202.93,13.7978]
[1739172517446,1.0,202.99,202.93,43.3778]
[1739172517754,1.0,202.99,202.93,19.39717664]
[1739172518348,6.59937664,203.01,202.94,5.59937664]
[1739172519051,6.59937664,203.01,202.95,3.9418]
[1739172520252,1.0,202.98,202.95,3.9418]
[1739172524952,1.0,202.98,202.93,9.8556]
[1739172525152,1.0,202.98,202.93,13.7978]
[1739172527929,1.0,202.98,202.93,3.9422]
[1739172528552,1.0,202.96,202.93,3.9422]
[1739172528956,1.0,202.98,202.93,3.9422]
[1739172529456,5.59937664,202.99,202.93,3.9422]
[1739172530338,5.59937664,202.99,202.93,13.7978]
[1739172530548,1.0,202.98,202.93,13.7978]
[1739172531654,26.59937664,203.01,202.94,5.59937664]
[1739172531852,21.0,203.01,202.94,5.59937664]
[1739172534255,1.0,202.99,202.94,5.59937664]
[1739172534437,1.0,202.99,202.95,3.9418]
[1739172535454,26.59937664,203.01,202.95,3.9418]
[1739172536459,1.0,202.99,202.95,3.9418]
[1739172537861,6.59937664,202.99,202.93,4.0052]
[1739172538041,1.0,202.96,202.93,4.0052]
[1739172538232,1.0,202.96,202.93,0.063]
[1739172538557,1.0,202.94,202.93,0.063]
[1739172539136,5.59937664,202.95,202.93,0.063]
[1739172539332,1.0,202.96,202.93,0.063]
[1739172539549,2.93878272,202.95,202.93,0.063]
[1739172540958,1.0,202.96,202.93,0.063]
[1739172542137,9.0393,202.98,202.93,0.063]
[1739172542346,1.0,203.0,202.94,5.59937664]
[1739172543262,1.0,203.0,202.95,5.59937664]
[1739172543856,2.94477717,202.99,202.95,5.59937664]
[1739172544249,2.94477717,202.99,202.94,19.39647664]
[1739172545159,3.94477717,202.99,202.94,19.39647664]
[1739172545557,2.94477717,202.98,202.94,19.39647664]
[1739172546759,2.94477717,202.98,202.95,5.59937664]
[1739172547066,2.94477717,202.97,202.95,5.59937664]
[1739172547362,2.94477717,202.97,202.94,5.59937664]
[1739172547561,2.94477717,202.97,202.93,5.66237664]
[1739172548465,1.0,203.0,202.94,5.59937664]
[1739172548760,6.59937664,203.02,202.94,5.59937664]
[1739172548968,6.59937664,203.02,202.95,5.59937664]
[1739172549967,2.95191645,203.01,202.95,5.59937664]
[1739172551050,2.95191645,203.01,202.96,3.9416]
[1739172551246,2.95191645,203.0,202.96,3.9416]
[1739172552762,2.95191645,202.99,202.96,3.9416]
[1739172554071,2.95191645,202.98,202.96,3.9416]
[1739172555668,2.95191645,202.97,202.96,3.9416]
[1739172557069,2.95191645,202.97,202.96,4.19258]
[1739172557371,2.95191645,202.97,202.96,29.79195664]
[1739172558272,11.55947336,203.04,202.96,39.64605664]